fUST/lending_fUST_20241112
["ID","MTS","AMOUNT","RATE_DAILY","PERIOD"]
[342049223,1731390644478,-503.11299491,0.00021917,2]
[342049225,1731390644488,-745.28,0.00021917,2]
[342049228,1731390644500,-500.0,0.00021917,2]
[342049230,1731390644511,-500.0,0.00021917,2]
[342049232,1731390644520,-510.10704533,0.00021917,2]
[342049234,1731390644529,-500.0,0.00021917,2]
[342049235,1731390644538,-500.0,0.00021917,2]
[342049237,1731390644548,-500.0,0.00021917,2]
[342049239,1731390644557,-500.0,0.00021917,2]
[342049241,1731390644566,-500.0,0.00021917,2]
[342049244,1731390644575,-500.0,0.00021917,2]
[342049246,1731390644585,-500.0,0.00021917,2]
[342049248,1731390644594,-500.0,0.00021917,2]
[342049249,1731390644605,-298.49061519,0.00021917,2]
[342049251,1731390644614,-507.00772033,0.00021917,2]
[342049253,1731390644623,-584.53636922,0.00021917,2]
[342049255,1731390644632,-277.1,0.00021917,2]
[342049256,1731390644642,-500.0,0.00021917,2]
[342049257,1731390644651,-500.0,0.00021917,2]
[342049258,1731390644660,-500.0,0.00021917,2]
[342049259,1731390644669,-500.0,0.00021917,2]
[342049260,1731390644678,-500.0,0.00021917,2]
[342049261,1731390644687,-502.78,0.00021917,2]
[342049262,1731390644696,-500.94025367,0.00021917,2]
[342049263,1731390644706,-500.0,0.00021917,2]
[342049264,1731390644714,-500.0,0.00021917,2]
[342049265,1731390644723,-500.0,0.00021917,2]
[342049266,1731390644732,-500.0,0.00021917,2]
[342049267,1731390644741,-500.0,0.00021917,2]
[342049268,1731390644751,-500.0,0.00021917,2]
[342049269,1731390644760,-500.0,0.00021917,2]
[342049270,1731390644770,-500.0,0.00021917,2]
[342049271,1731390644779,-500.0,0.00021917,2]
[342049272,1731390644789,-504.85557894,0.00021917,2]
[342049273,1731390644800,-500.0,0.00021917,2]
[342049274,1731390644812,-500.0,0.00021917,2]
[342049275,1731390644822,-538.69746352,0.00021917,2]
[342049276,1731390644831,-569.49962382,0.00021917,2]
[342049277,1731390644842,-500.0,0.00021917,2]
[342049278,1731390644851,-500.0,0.00021917,2]
[342049279,1731390644860,-639.57674529,0.00021917,2]
[342049280,1731390644869,-500.0,0.00021917,2]
[342049281,1731390644879,-503.80829893,0.00021917,2]
[342049282,1731390644888,-500.0,0.00021917,2]
[342049283,1731390644899,-500.0,0.00021917,2]
[342049284,1731390644909,-500.0,0.00021917,2]
[342049285,1731390644919,-500.0,0.00021917,2]
[342049286,1731390644928,-500.0,0.00021917,2]
[342049287,1731390644938,-500.0,0.00021917,2]
[342049288,1731390644947,-500.0,0.00021917,2]
[342049289,1731390644956,-500.0,0.00021917,2]
[342049290,1731390644966,-500.0,0.00021917,2]
[342049291,1731390644976,-500.0,0.00021917,2]
[342049292,1731390644985,-500.0,0.00021917,2]
[342049293,1731390644997,-500.0,0.00021917,2]
[342049294,1731390645007,-500.0,0.00021917,2]
[342049295,1731390645016,-177.57640069,0.00021917,2]
[342049296,1731390645025,-151.0,0.00021917,2]
[342049297,1731390645034,-151.0,0.00021917,2]
[342049298,1731390645043,-151.0,0.00021917,2]
[342049299,1731390645052,-500.0,0.00021917,2]
[342049300,1731390645061,-151.0,0.00021917,2]
[342049301,1731390645070,-151.0,0.00021917,2]
[342049302,1731390645080,-500.0,0.00021917,2]
[342049303,1731390645089,-151.0,0.00021917,2]
[342049304,1731390645097,-151.0,0.00021917,2]
[342049305,1731390645107,-151.0,0.00021917,2]
[342049306,1731390645116,-151.0,0.00021917,2]
[342049307,1731390645125,-151.0,0.00021917,2]
[342049308,1731390645134,-273.503446,0.00021917,2]
[342049309,1731390645143,-666.33,0.00021917,2]
[342049310,1731390645152,-500.0,0.00021917,2]
[342049311,1731390645161,-500.0,0.00021917,2]
[342049312,1731390645170,-500.0,0.00021917,2]
[342049313,1731390645180,-500.0,0.00021917,2]
[342049314,1731390645189,-500.0,0.00021917,2]
[342049315,1731390645198,-500.0,0.00021917,2]
[342049316,1731390645208,-500.0,0.00021917,2]
[342049317,1731390645218,-500.0,0.00021917,2]
[342049318,1731390645226,-500.0,0.00021917,2]
[342049319,1731390645235,-500.0,0.00021917,2]
[342049320,1731390645245,-500.0,0.00021917,2]
[342049321,1731390645254,-500.0,0.00021917,2]
[342049322,1731390645263,-292.18432351,0.00021917,2]
[342049323,1731390645272,-500.0,0.00021917,2]
[342049324,1731390645281,-500.0,0.00021917,2]
[342049325,1731390645290,-508.77746945,0.00021917,2]
[342049326,1731390645299,-500.0,0.00021917,2]
[342049327,1731390645308,-500.0,0.00021917,2]
[342049328,1731390645317,-500.0,0.00021917,2]
[342049329,1731390645326,-500.0,0.00021917,2]
[342049330,1731390645472,-500.0,0.00021917,2]
[342049331,1731390645482,-500.0,0.00021917,2]
[342049332,1731390645491,-500.0,0.00021917,2]
[342049333,1731390645504,-500.0,0.00021917,2]
[342049334,1731390645514,-548.66044441,0.00021917,2]
[342049335,1731390645523,-500.0,0.00021917,2]
[342049336,1731390645533,-500.0,0.00021917,2]
[342049337,1731390645544,-500.0,0.00021917,2]
[342049338,1731390645553,-500.0,0.00021917,2]
[342049339,1731390645563,-622.31348716,0.00021917,2]
[342049340,1731390645574,-500.0,0.00021917,2]
[342049341,1731390645584,-500.0,0.00021917,2]
[342049342,1731390645593,-500.0,0.00021917,2]
[342049343,1731390645602,-427.86527903,0.00021917,2]
[342049344,1731390645611,-500.0,0.00021917,2]
[342049345,1731390645620,-593.40256753,0.00021917,2]
[342049346,1731390645630,-500.0,0.00021917,2]
[342049347,1731390645639,-520.61376904,0.00021917,2]
[342049348,1731390645648,-500.0,0.00021917,2]
[342049349,1731390645657,-507.0,0.00021917,2]
[342049350,1731390645667,-500.0,0.00021917,2]
[342049351,1731390645676,-991.19813038,0.00021917,2]
[342049352,1731390645685,-500.0,0.00021917,2]
[342049353,1731390645694,-500.0,0.00021917,2]
[342049354,1731390645704,-500.0,0.00021917,2]
[342049355,1731390645713,-158.62255977,0.00021917,2]
[342049559,1731390760516,1055.7182869,1e-05,14]
[342049560,1731390866386,174.39832,0.00020615,2]
[342049572,1731391011244,1169.27083333,0.00020845,2]
[342049576,1731391215858,4713.4321733,0.00020798,2]
[342049581,1731391294166,314.93482,0.0001,2]
[342049582,1731391322545,1169.27083333,0.00020845,2]
[342049586,1731391387548,55425.74,0.00020845,2]
[342049591,1731391497496,1001476.4940168,0.00020845,2]
[342049592,1731391503202,300.0,0.00020844,2]
[342049594,1731391513718,354.28,0.00020835,3]
[342049598,1731391560542,300.0,0.00020844,2]
[342049599,1731391562750,300.0,0.00020844,2]
[342049600,1731391593573,197.9696694,0.00020844,2]
[342049601,1731391593810,343.42555069,0.00020844,2]
[342049602,1731391593841,500.0,0.00020844,2]
[342049603,1731391593871,220.73794451,0.00020844,2]
[342049604,1731391593905,500.0,0.00020844,2]
[342049605,1731391594011,217.84000863,0.00020844,2]
[342049606,1731391594048,251.83845556,0.00020844,2]
[342049607,1731391594160,375.14445998,0.00020844,2]
[342049608,1731391594543,500.0,0.00020844,2]
[342049609,1731391595595,464.54212598,0.00020844,2]
[342049610,1731391601791,179.58862508,0.00020844,2]
[342049611,1731391601825,200.0,0.00020844,2]
[342049612,1731391601944,250.0,0.00020844,2]
[342049613,1731391611180,150.112235,0.000208,4]
[342049615,1731391620657,300.0,0.00020844,2]
[342049616,1731391622954,300.0,0.00020844,2]
[342049621,1731391636165,1855.7015036,0.00020745,2]
[342049627,1731391680899,300.0,0.00020844,2]
[342049628,1731391701513,2587.76044198,0.00020745,2]
[342049634,1731391740551,300.0,0.00020844,2]
[342049636,1731391800569,300.0,0.00020844,2]
[342049637,1731391802916,300.0,0.00020844,2]
[342049646,1731391825325,3395.54223768,0.00020745,2]
[342049697,1731391841207,213.23911,0.00020649,2]
[342049710,1731391843738,-183.18753126,0.00020845,2]
[342049712,1731391843748,-13761.86910025,0.00020845,2]
[342049714,1731391843768,-2999.44516265,0.00020845,2]
[342049715,1731391843779,-3777.79884049,0.00020845,2]
[342049722,1731391860742,300.0,0.00020844,2]
[342049723,1731391863034,300.0,0.00020844,2]
[342049724,1731391891004,168.18267704,0.00020844,2]
[342049725,1731391892519,1236.3879216,0.00020829,2]
[342049726,1731391893745,314.56,0.00020835,3]
[342049728,1731391902235,2264.29038675,0.00020745,2]
[342049729,1731391920608,300.0,0.00020844,2]
[342049730,1731391923363,300.0,0.00020844,2]
[342049753,1731391980525,300.0,0.00020844,2]
[342049754,1731391982975,300.0,0.00020844,2]
[342049756,1731392026461,1670.13135324,0.00020745,2]
[342049757,1731392040612,300.0,0.00020844,2]
[342049760,1731392043226,300.0,0.00020844,2]
[342049765,1731392100864,300.0,0.00020844,2]
[342049766,1731392102671,300.0,0.00020844,2]
[342049767,1731392107569,1981.25408838,0.00020745,2]
[342049769,1731392160623,300.0,0.00020844,2]
[342049770,1731392220672,300.0,0.00020844,2]
[342049772,1731392223636,300.0,0.00020844,2]
[342049786,1731392280560,300.0,0.00020844,2]
[342049787,1731392282425,300.0,0.00020844,2]
[342049789,1731392313758,1733.59732735,0.00020745,2]
[342049790,1731392320757,326.54,0.00020428,2]
[342049791,1731392340609,300.0,0.00020844,2]
[342049792,1731392343372,300.0,0.00020844,2]
[342049794,1731392400860,300.0,0.00020844,2]
[342049795,1731392402553,300.0,0.00020844,2]
[342049798,1731392416788,1503.11821788,0.00020745,2]
[342049799,1731392460553,300.0,0.00020844,2]
[342049800,1731392463208,300.0,0.00020844,2]
[342049801,1731392515707,150.112233,0.000201,3]
[342049802,1731392516066,150.112233,0.000193,2]
[342049803,1731392516416,150.112233,0.000185,2]
[342049804,1731392519852,1516.89766144,0.00020745,2]
[342049805,1731392520570,300.0,0.00020844,2]
[342049806,1731392523253,300.0,0.00020844,2]
[342049807,1731392580598,300.0,0.00020844,2]
[342049808,1731392587753,300.0,0.00020844,2]
[342049813,1731392640656,300.0,0.00020844,2]
[342049814,1731392642429,300.0,0.00020844,2]
[342049816,1731392700620,300.0,0.00020844,2]
[342049817,1731392703435,300.0,0.00020844,2]
[342049818,1731392725160,1327.28545376,0.00020745,2]
[342049820,1731392760613,300.0,0.00020844,2]
[342049821,1731392763391,300.0,0.00020844,2]
[342049823,1731392806989,1352.80639611,0.00020745,2]
[342049824,1731392820686,300.0,0.00020844,2]
[342049825,1731392822582,300.0,0.00020844,2]
[342049829,1731392880606,300.0,0.00020844,2]
[342049849,1731392930764,1161.37477204,0.00020745,2]
[342049850,1731392940837,300.0,0.00020844,2]
[342049851,1731392943079,300.0,0.00020844,2]
[342049855,1731393000594,300.0,0.00020844,2]
[342049856,1731393002537,300.0,0.00020844,2]
[342049891,1731393032002,-160.0,0.00020845,2]
[342049892,1731393032012,-371.84414397,0.00020845,2]
[342049894,1731393035674,3910.72736895,0.00020745,2]
[342049917,1731393037908,-4433.670183,0.00020845,2]
[342049925,1731393039813,478.19126191,0.00020844,2]
[342049926,1731393039843,500.0,0.00020844,2]
[342049927,1731393039875,426.97242447,0.00020844,2]
[342049928,1731393039905,500.0,0.00020844,2]
[342049929,1731393039934,12388.11244706,0.00020637,2]
[342049930,1731393039964,500.0,0.00020844,2]
[342049931,1731393039997,500.0,0.00020844,2]
[342049932,1731393040027,500.0,0.00020844,2]
[342049933,1731393040061,508.03496658,0.00020844,2]
[342049934,1731393040100,500.0,0.00020844,2]
[342049935,1731393040140,500.0,0.00020844,2]
[342049936,1731393040778,-1937.150927,0.00020845,2]
[342049942,1731393042752,1780.49276721,0.00020844,2]
[342049967,1731393046003,-392231.02941357,0.00020845,2]
[342049968,1731393046180,225.98,0.00020835,3]
[342049969,1731393057039,677.98,0.00020835,3]
[342049970,1731393058054,3219.50723279,0.00020844,2]
[342049971,1731393060577,300.0,0.00020844,2]
[342049972,1731393062836,300.0,0.00020844,2]
[342049974,1731393112771,500.0,0.00020844,2]
[342049975,1731393114603,812.68462397,0.00020745,2]
[342049977,1731393118752,150.112233,0.000201,3]
[342049978,1731393120504,500.0,0.00020844,2]
[342049979,1731393120536,500.0,0.00020844,2]
[342049980,1731393120567,500.0,0.00020844,2]
[342049981,1731393120597,227.12562855,0.00020844,2]
[342049982,1731393120656,300.0,0.00020844,2]
[342049983,1731393123730,300.0,0.00020844,2]
[342049984,1731393130474,500.0,0.00020844,2]
[342049985,1731393130731,1433.44537595,0.00020745,2]
[342049986,1731393139659,451.96,0.00020835,3]
[342049987,1731393144512,500.0,0.00020844,2]
[342049988,1731393180649,300.0,0.00020844,2]
[342049989,1731393182423,300.0,0.00020844,2]
[342050012,1731393197277,1217.52575649,0.00020745,2]
[342050013,1731393240547,300.0,0.00020844,2]
[342050014,1731393242446,300.0,0.00020844,2]
[342050016,1731393300659,300.0,0.00020844,2]
[342050017,1731393302610,300.0,0.00020844,2]
[342050018,1731393306048,10209.1893051,0.00020587,2]
[342050022,1731393336372,1640.93394267,0.00020745,2]
[342050023,1731393360770,300.0,0.00020844,2]
[342050024,1731393362922,300.0,0.00020844,2]
[342050035,1731393373529,161.4574547,0.00020513,2]
[342050036,1731393407193,10730.75738038,0.00020637,2]
[342050037,1731393420596,300.0,0.00020844,2]
[342050038,1731393422973,300.0,0.00020844,2]
[342050039,1731393439604,184.00577479,0.00020745,2]
[342050040,1731393480557,300.0,0.00020844,2]
[342050041,1731393483230,300.0,0.00020844,2]
[342050044,1731393503099,14112.2962679,0.00020657,2]
[342050045,1731393511082,160.0,0.00020844,2]
[342050046,1731393520784,261.232,0.00020428,2]
[342050047,1731393540630,300.0,0.00020844,2]
[342050048,1731393541616,1435.81719981,0.00020745,2]
[342050049,1731393592813,1095.77318085,0.00020745,2]
[342050050,1731393600655,300.0,0.00020844,2]
[342050051,1731393602585,300.0,0.00020844,2]
[342050052,1731393660715,300.0,0.00020844,2]
[342050053,1731393663751,300.0,0.00020844,2]
[342050060,1731393720729,300.0,0.00020844,2]
[342050062,1731393746923,1256.34004986,0.00020745,2]
[342050065,1731393780628,300.0,0.00020844,2]
[342050066,1731393783626,300.0,0.00020844,2]
[342050069,1731393823655,160.0,0.00020844,2]
[342050071,1731393840667,300.0,0.00020844,2]
[342050072,1731393843749,300.0,0.00020844,2]
[342050080,1731393900684,300.0,0.00020844,2]
[342050081,1731393902574,300.0,0.00020844,2]
[342050084,1731393957100,1099.29754361,0.00020745,2]
[342050085,1731393960844,300.0,0.00020844,2]
[342050086,1731393963080,300.0,0.00020844,2]
[342050088,1731393982849,1002.01288324,0.00020745,2]
[342050090,1731394021131,300.0,0.00020844,2]
[342050091,1731394023109,300.0,0.00020844,2]
[342050096,1731394080572,300.0,0.00020844,2]
[342050097,1731394082835,300.0,0.00020844,2]
[342050112,1731394135073,160.0,0.00020844,2]
[342050113,1731394140648,300.0,0.00020844,2]
[342050114,1731394144184,300.0,0.00020844,2]
[342050119,1731394182590,961.88535065,0.00020745,2]
[342050120,1731394200666,300.0,0.00020844,2]
[342050163,1731394232122,-160.0,0.00020845,2]
[342050164,1731394232132,-482.19780098,0.00020845,2]
[342050165,1731394232142,-7679.40019593,0.00020845,2]
[342050169,1731394232257,-21337.80086275,0.00020845,2]
[342050180,1731394239293,-6290.27138861,0.00020845,2]
[342050181,1731394239305,-114445.27642405,0.00020845,2]
[342050182,1731394239318,-995.53844855,0.00020845,2]
[342050247,1731394240101,-534.04858095,0.00020845,2]
[342050250,1731394240113,-16773.84521761,0.00020845,2]
[342050268,1731394241579,-641.68,0.00020845,2]
[342050269,1731394241590,-2620.6825556,0.00020845,2]
[342050270,1731394241767,-16368.56728653,0.00020845,2]
[342050271,1731394241920,-13410.52456008,0.00020845,2]
[342050294,1731394243163,-2063.928,0.00020845,2]
[342050300,1731394243210,-51933.43540444,0.00020845,2]
[342050302,1731394243223,-3100.04885492,0.00020845,2]
[342050307,1731394243262,-29773.5,0.00020845,2]
[342050357,1731394249797,-104650.96007732,0.00020845,2]
[342050360,1731394249845,-797.796,0.00020845,2]
[342050362,1731394251034,4393.08844752,0.00020637,2]
[342050363,1731394259894,150.01,0.00020844,2]
[342050364,1731394260389,490.43653857,0.00020844,2]
[342050366,1731394260600,300.0,0.00020844,2]
[342050367,1731394263593,300.0,0.00020844,2]
[342050368,1731394269932,150.01,0.00020844,2]
[342050369,1731394270521,408.69711547,0.00020844,2]
[342050370,1731394276948,500.0,0.00020844,2]
[342050371,1731394276982,500.0,0.00020844,2]
[342050372,1731394277014,500.0,0.00020844,2]
[342050373,1731394277056,500.0,0.00020844,2]
[342050374,1731394277089,500.0,0.00020844,2]
[342050375,1731394277120,500.0,0.00020844,2]
[342050376,1731394277154,500.0,0.00020844,2]
[342050377,1731394277183,500.0,0.00020844,2]
[342050378,1731394277212,500.0,0.00020844,2]
[342050379,1731394277241,200.0,0.00020844,2]
[342050380,1731394277273,500.0,0.00020844,2]
[342050381,1731394277303,500.0,0.00020844,2]
[342050382,1731394277337,477.02078898,0.00020844,2]
[342050383,1731394277367,500.0,0.00020844,2]
[342050384,1731394277397,500.0,0.00020844,2]
[342050385,1731394277426,500.0,0.00020844,2]
[342050386,1731394277454,500.0,0.00020844,2]
[342050387,1731394277484,650.0,0.00020844,2]
[342050388,1731394277517,500.0,0.00020844,2]
[342050389,1731394277558,500.0,0.00020844,2]
[342050390,1731394277588,500.0,0.00020844,2]
[342050391,1731394278035,481.75184776,0.00020843,2]
[342050392,1731394279905,165.77918999,0.00020844,2]
[342050393,1731394280397,340.58092956,0.00020844,2]
[342050394,1731394286608,500.0,0.00020844,2]
[342050395,1731394286693,500.0,0.00020844,2]
[342050396,1731394286928,500.0,0.00020844,2]
[342050397,1731394287016,500.0,0.00020844,2]
[342050398,1731394287148,500.0,0.00020844,2]
[342050399,1731394287253,500.0,0.00020844,2]
[342050400,1731394287351,500.0,0.00020844,2]
[342050401,1731394287465,500.0,0.00020844,2]
[342050402,1731394287563,500.0,0.00020844,2]
[342050403,1731394287663,500.0,0.00020844,2]
[342050404,1731394287802,500.0,0.00020844,2]
[342050405,1731394287874,500.0,0.00020844,2]
[342050406,1731394287972,500.0,0.00020844,2]
[342050407,1731394288102,500.0,0.00020844,2]
[342050408,1731394288176,500.0,0.00020844,2]
[342050409,1731394288427,500.0,0.00020844,2]
[342050410,1731394288791,500.0,0.00020844,2]
[342050411,1731394289090,500.0,0.00020844,2]
[342050412,1731394289417,500.0,0.00020844,2]
[342050413,1731394289447,243.21473736,0.00020844,2]
[342050414,1731394289477,500.0,0.00020844,2]
[342050415,1731394289549,500.0,0.00020844,2]
[342050416,1731394289579,500.0,0.00020844,2]
[342050417,1731394289616,500.0,0.00020844,2]
[342050418,1731394289646,500.0,0.00020844,2]
[342050419,1731394289702,283.8174413,0.00020844,2]
[342050420,1731394289733,500.0,0.00020844,2]
[342050421,1731394289796,500.0,0.00020844,2]
[342050422,1731394290510,500.0,0.00020844,2]
[342050425,1731394309695,236.51453442,0.00020844,2]
[342050426,1731394312474,234.69891273,0.00020844,2]
[342050427,1731394318479,500.0,0.00020844,2]
[342050428,1731394318885,500.0,0.00020844,2]
[342050429,1731394319201,500.0,0.00020844,2]
[342050430,1731394319561,500.0,0.00020844,2]
[342050431,1731394319597,500.0,0.00020844,2]
[342050432,1731394319632,500.0,0.00020844,2]
[342050433,1731394319664,500.0,0.00020844,2]
[342050434,1731394319695,500.0,0.00020844,2]
[342050435,1731394319728,500.0,0.00020844,2]
[342050436,1731394319760,500.0,0.00020844,2]
[342050437,1731394319790,500.0,0.00020844,2]
[342050438,1731394319823,500.0,0.00020844,2]
[342050439,1731394319857,615.0,0.00020844,2]
[342050440,1731394319896,500.0,0.00020844,2]
[342050441,1731394319929,183.80607118,0.00020844,2]
[342050442,1731394319960,500.0,0.00020844,2]
[342050443,1731394319992,500.0,0.00020844,2]
[342050444,1731394320037,500.0,0.00020844,2]
[342050445,1731394320078,500.0,0.00020844,2]
[342050446,1731394320113,500.0,0.00020844,2]
[342050447,1731394320151,500.0,0.00020844,2]
[342050448,1731394320183,500.0,0.00020844,2]
[342050449,1731394320244,500.0,0.00020844,2]
[342050450,1731394320277,500.0,0.00020844,2]
[342050451,1731394320315,500.0,0.00020844,2]
[342050452,1731394320351,500.0,0.00020844,2]
[342050453,1731394320383,500.0,0.00020844,2]
[342050454,1731394320596,500.0,0.00020844,2]
[342050455,1731394320628,500.0,0.00020844,2]
[342050456,1731394320659,500.0,0.00020844,2]
[342050457,1731394320690,500.0,0.00020844,2]
[342050458,1731394320721,500.0,0.00020844,2]
[342050459,1731394320751,500.0,0.00020844,2]
[342050460,1731394320780,300.0,0.00020844,2]
[342050461,1731394320817,500.0,0.00020844,2]
[342050462,1731394320853,500.0,0.00020844,2]
[342050463,1731394320885,500.0,0.00020844,2]
[342050464,1731394320917,500.0,0.00020844,2]
[342050465,1731394320956,500.0,0.00020844,2]
[342050467,1731394329713,197.09544535,0.00020844,2]
[342050468,1731394332064,176206.96,0.000208,2]
[342050469,1731394333207,500.0,0.00020844,2]
[342050470,1731394333240,500.0,0.00020844,2]
[342050471,1731394333272,500.0,0.00020844,2]
[342050472,1731394333306,500.0,0.00020844,2]
[342050475,1731394372847,841.64968181,0.00020745,2]
[342050476,1731394373272,901.81159488,0.00020745,2]
[342050477,1731394380209,164.24620446,0.00020844,2]
[342050478,1731394380761,300.0,0.00020844,2]
[342050479,1731394383508,300.0,0.00020844,2]
[342050482,1731394441547,300.0,0.00020844,2]
[342050483,1731394443607,300.0,0.00020844,2]
[342050484,1731394446533,500.0,0.00020844,2]
[342050486,1731394455317,552.48800604,0.00020844,2]
[342050487,1731394455954,500.0,0.00020844,2]
[342050488,1731394455995,500.0,0.00020844,2]
[342050489,1731394456053,500.0,0.00020844,2]
[342050490,1731394456111,500.0,0.00020844,2]
[342050491,1731394456196,500.0,0.00020844,2]
[342050492,1731394456239,500.0,0.00020844,2]
[342050493,1731394456276,451.62497039,0.00020844,2]
[342050494,1731394463684,500.0,0.00020844,2]
[342050495,1731394463714,500.0,0.00020844,2]
[342050496,1731394463749,500.0,0.00020844,2]
[342050497,1731394463780,500.0,0.00020844,2]
[342050498,1731394463810,500.0,0.00020844,2]
[342050499,1731394463845,500.0,0.00020844,2]
[342050500,1731394463879,500.0,0.00020844,2]
[342050501,1731394463913,500.0,0.00020844,2]
[342050502,1731394463949,500.0,0.00020844,2]
[342050503,1731394463979,500.0,0.00020844,2]
[342050504,1731394464009,500.0,0.00020844,2]
[342050505,1731394464041,500.0,0.00020844,2]
[342050506,1731394464074,500.0,0.00020844,2]
[342050507,1731394464108,500.0,0.00020844,2]
[342050508,1731394464141,500.0,0.00020844,2]
[342050509,1731394464187,500.0,0.00020844,2]
[342050510,1731394464218,500.0,0.00020844,2]
[342050511,1731394464247,527.53141379,0.00020844,2]
[342050512,1731394464276,500.0,0.00020844,2]
[342050513,1731394464306,500.0,0.00020844,2]
[342050514,1731394464335,500.0,0.00020844,2]
[342050515,1731394464363,500.0,0.00020844,2]
[342050516,1731394464396,500.0,0.00020844,2]
[342050517,1731394464428,500.0,0.00020844,2]
[342050518,1731394464466,500.0,0.00020844,2]
[342050519,1731394464496,500.0,0.00020844,2]
[342050520,1731394464550,500.0,0.00020844,2]
[342050521,1731394464720,500.0,0.00020844,2]
[342050522,1731394470306,150.01,0.00020844,2]
[342050525,1731394471957,612.60112199,0.00020844,2]
[342050526,1731394474302,236.74160423,0.00020844,2]
[342050527,1731394478277,500.0,0.00020844,2]
[342050528,1731394478307,500.0,0.00020844,2]
[342050529,1731394478337,500.0,0.00020844,2]
[342050530,1731394478365,500.0,0.00020844,2]
[342050531,1731394478398,500.0,0.00020844,2]
[342050532,1731394478431,500.0,0.00020844,2]
[342050533,1731394478463,500.0,0.00020844,2]
[342050534,1731394478492,500.0,0.00020844,2]
[342050535,1731394478521,500.0,0.00020844,2]
[342050536,1731394478573,500.0,0.00020844,2]
[342050537,1731394478606,500.0,0.00020844,2]
[342050538,1731394478637,500.0,0.00020844,2]
[342050539,1731394478668,500.0,0.00020844,2]
[342050540,1731394478703,500.0,0.00020844,2]
[342050541,1731394478733,500.0,0.00020844,2]
[342050542,1731394478764,500.0,0.00020844,2]
[342050543,1731394478799,500.0,0.00020844,2]
[342050544,1731394478846,500.0,0.00020844,2]
[342050545,1731394478883,500.0,0.00020844,2]
[342050546,1731394478922,500.0,0.00020844,2]
[342050547,1731394478955,500.0,0.00020844,2]
[342050548,1731394478986,415.16534118,0.00020844,2]
[342050549,1731394479040,500.0,0.00020844,2]
[342050550,1731394479073,500.0,0.00020844,2]
[342050551,1731394479102,500.0,0.00020844,2]
[342050552,1731394479132,500.0,0.00020844,2]
[342050553,1731394479168,500.0,0.00020844,2]
[342050554,1731394479199,500.0,0.00020844,2]
[342050555,1731394479229,500.0,0.00020844,2]
[342050556,1731394479262,500.0,0.00020844,2]